[Event "Titled Tuesday Blitz March 28 Early 2023"]
[White "Lewtak, Damian"]
[Black "Lukas2010"]
[WhiteFideId "1141724"]
[WhiteElo "2302"]
[BlackElo "2537"]
[Result "1-0"]
[Round "09"]
[TimeControl "180+2"]
[Date "2023.03.28"]
[WhiteClock "0:00:05"]
[BlackClock "0:00:01"]

1. e4 {[%clk 0:03:00]}  c5 {[%clk 0:02:59]} 2. Nf3 {[%clk 0:03:00]}  e6 {[%clk 0:02:59]} 3. d4 {[%clk 0:02:59]}  cxd4 {[%clk 0:02:59]} 4. Nxd4 {[%clk 0:03:00]}  Nc6 {[%clk 0:03:00]} 5. Nc3 {[%clk 0:03:00]}  Qc7 {[%clk 0:03:00]} 6. Be3 {[%clk 0:02:59]}  a6 {[%clk 0:03:01]} 7. Nxc6 {[%clk 0:02:58]}  Qxc6 {[%clk 0:03:00]} 8. g4 {[%clk 0:02:28]}  b5 {[%clk 0:02:59]} 9. a3 {[%clk 0:02:19]}  Bb7 {[%clk 0:02:54]} 10. f3 {[%clk 0:02:11]}  Bc5 {[%clk 0:02:47]} 11. Qd2 {[%clk 0:02:08]}  Ne7 {[%clk 0:02:45]} 12. O-O-O {[%clk 0:02:04]}  Rd8 {[%clk 0:02:17]} 13. Bxc5 {[%clk 0:01:56]}  Qxc5 {[%clk 0:02:18]} 14. Qd6 {[%clk 0:01:54]}  Qxd6 {[%clk 0:02:16]} 15. Rxd6 {[%clk 0:01:55]}  Nc8 {[%clk 0:02:13]} 16. Rd2 {[%clk 0:01:55]}  d6 {[%clk 0:02:10]} 17. Be2 {[%clk 0:01:52]}  Ke7 {[%clk 0:02:10]} 18. a4 {[%clk 0:01:50]}  b4 {[%clk 0:02:08]} 19. Na2 {[%clk 0:01:50]}  a5 {[%clk 0:02:09]} 20. b3 {[%clk 0:01:50]}  Nb6 {[%clk 0:02:08]} 21. Kb2 {[%clk 0:01:45]}  d5 {[%clk 0:02:05]} 22. e5 {[%clk 0:01:46]}  Rc8 {[%clk 0:02:00]} 23. c3 {[%clk 0:01:44]}  bxc3+ {[%clk 0:01:59]} 24. Nxc3 {[%clk 0:01:44]}  Rhd8 {[%clk 0:01:57]} 25. Nb5 {[%clk 0:01:43]}  Rc5 {[%clk 0:01:52]} 26. Nd6 {[%clk 0:01:33]}  Bc6 {[%clk 0:01:49]} 27. Rc1 {[%clk 0:01:26]}  Rxc1 {[%clk 0:01:46]} 28. Kxc1 {[%clk 0:01:26]}  Nc8 {[%clk 0:01:28]} 29. Nxc8+ {[%clk 0:01:15]}  Rxc8 {[%clk 0:01:29]} 30. Kb2 {[%clk 0:01:15]}  Bd7 {[%clk 0:01:23]} 31. Bd3 {[%clk 0:01:12]}  h6 {[%clk 0:01:19]} 32. f4 {[%clk 0:01:10]}  f6 {[%clk 0:01:15]} 33. Re2 {[%clk 0:01:01]}  fxe5 {[%clk 0:01:07]} 34. fxe5 {[%clk 0:00:55]}  Rf8 {[%clk 0:01:04]} 35. b4 {[%clk 0:00:49]}  axb4 {[%clk 0:00:54]} 36. a5 {[%clk 0:00:50]}  Ra8 {[%clk 0:00:53]} 37. a6 {[%clk 0:00:41]}  Bc8 {[%clk 0:00:52]} 38. Rc2 {[%clk 0:00:41]}  Bxa6 {[%clk 0:00:52]} 39. Rc7+ {[%clk 0:00:41]}  Kf8 {[%clk 0:00:43]} 40. Bg6 {[%clk 0:00:41]}  Bc4 {[%clk 0:00:39]} 41. Rf7+ {[%clk 0:00:41]}  Kg8 {[%clk 0:00:40]} 42. Re7 {[%clk 0:00:31]}  d4 {[%clk 0:00:37]} 43. Rd7 {[%clk 0:00:31]}  Bd5 {[%clk 0:00:36]} 44. Kc2 {[%clk 0:00:27]}  b3+ {[%clk 0:00:33]} 45. Kd3 {[%clk 0:00:26]}  Rb8 {[%clk 0:00:22]} 46. Kxd4 {[%clk 0:00:26]}  b2 {[%clk 0:00:22]} 47. Bb1 {[%clk 0:00:26]}  Rb4+ {[%clk 0:00:21]} 48. Kc3 {[%clk 0:00:26]}  Rxg4 {[%clk 0:00:19]} 49. Kxb2 {[%clk 0:00:25]}  Rg2+ {[%clk 0:00:17]} 50. Kc3 {[%clk 0:00:26]}  h5 {[%clk 0:00:12]} 51. h4 {[%clk 0:00:20]}  g5 {[%clk 0:00:11]} 52. hxg5 {[%clk 0:00:20]}  Rxg5 {[%clk 0:00:12]} 53. Kd4 {[%clk 0:00:19]}  h4 {[%clk 0:00:12]} 54. Rd8+ {[%clk 0:00:18]}  Kg7 {[%clk 0:00:12]} 55. Rd7+ {[%clk 0:00:18]}  Kf8 {[%clk 0:00:12]} 56. Rd8+ {[%clk 0:00:17]}  Ke7 {[%clk 0:00:12]} 57. Rh8 {[%clk 0:00:17]}  Rg4+ {[%clk 0:00:11]} 58. Ke3 {[%clk 0:00:17]}  Kd7 {[%clk 0:00:10]} 59. Bd3 {[%clk 0:00:15]}  Kc6 {[%clk 0:00:10]} 60. Rc8+ {[%clk 0:00:14]}  Kb7 {[%clk 0:00:10]} 61. Rh8 {[%clk 0:00:15]}  Rg3+ {[%clk 0:00:10]} 62. Kd4 {[%clk 0:00:15]}  h3 {[%clk 0:00:10]} 63. Bf1 {[%clk 0:00:07]}  Bg2 {[%clk 0:00:09]} 64. Bc4 {[%clk 0:00:07]}  Rg4+ {[%clk 0:00:09]} 65. Kc5 {[%clk 0:00:08]}  Rg7 {[%clk 0:00:07]} 66. Bxe6 {[%clk 0:00:07]}  Rc7+ {[%clk 0:00:07]} 67. Kd6 {[%clk 0:00:07]}  Rc6+ {[%clk 0:00:08]} 68. Ke7 {[%clk 0:00:07]}  Rc7+ {[%clk 0:00:08]} 69. Kd8 {[%clk 0:00:07]}  Kb6 {[%clk 0:00:05]} 70. Bd7 {[%clk 0:00:07]}  Rc2 {[%clk 0:00:03]} 71. Bxh3 {[%clk 0:00:04]}  Bxh3 {[%clk 0:00:02]} 72. Rxh3 {[%clk 0:00:05]}  Re2 {[%clk 0:00:02]} 73. Rh5 {[%clk 0:00:05]}  Kc6 {[%clk 0:00:03]} 74. Ke7 {[%clk 0:00:05]}  Kd5 {[%clk 0:00:03]} 75. e6+ {[%clk 0:00:06]}  Kc6 {[%clk 0:00:03]} 76. Rh1 {[%clk 0:00:02]}  Rc2 {[%clk 0:00:02]} 77. Rd1 {[%clk 0:00:03]}  Kc7 {[%clk 0:00:02]} 78. Kf7 {[%clk 0:00:03]}  Rf2+ {[%clk 0:00:02]} 79. Ke8 {[%clk 0:00:03]}  Rc2 {[%clk 0:00:03]} 80. e7 {[%clk 0:00:04]}  Kc8 {[%clk 0:00:01]} 81. Rf1 {[%clk 0:00:04]}  Kc7 {[%clk 0:00:01]} 82. Kf8 {[%clk 0:00:05]} 1-0


[Site "https://www.chess.com"]

[Event "Titled Tuesday Blitz March 28 Early 2023"]
[White "Kozak, Antoni"]
[Black "Bas Mas, Jose Joaquin"]
[WhiteFideId "21832030"]
[BlackFideId "22219064"]
[WhiteElo "2470"]
[BlackElo "2233"]
[Result "1-0"]
[Round "09"]
[TimeControl "180+2"]
[Date "2023.03.28"]
[WhiteClock "0:01:37"]
[BlackClock "0:01:32"]

1. d4 {[%clk 0:03:00]}  d5 {[%clk 0:02:59]} 2. Nc3 {[%clk 0:03:01]}  Nf6 {[%clk 0:02:58]} 3. Bg5 {[%clk 0:02:53]}  e6 {[%clk 0:02:58]} 4. e4 {[%clk 0:02:49]}  dxe4 {[%clk 0:02:57]} 5. Nxe4 {[%clk 0:02:49]}  Be7 {[%clk 0:02:58]} 6. Bxf6 {[%clk 0:02:41]}  gxf6 {[%clk 0:02:58]} 7. Nf3 {[%clk 0:02:39]}  f5 {[%clk 0:02:57]} 8. Ng3 {[%clk 0:02:39]}  h5 {[%clk 0:02:42]} 9. Bc4 {[%clk 0:02:19]}  h4 {[%clk 0:02:25]} 10. Ne2 {[%clk 0:02:19]}  h3 {[%clk 0:02:25]} 11. g3 {[%clk 0:02:16]}  b6 {[%clk 0:02:25]} 12. d5 {[%clk 0:02:07]}  Bb7 {[%clk 0:02:24]} 13. Nf4 {[%clk 0:02:02]}  Qd6 {[%clk 0:01:54]} 14. Qe2 {[%clk 0:01:53]}  exd5 {[%clk 0:01:44]} 15. O-O-O {[%clk 0:01:52]}  c6 {[%clk 0:01:37]} 16. Rhe1 {[%clk 0:01:46]}  Nd7 {[%clk 0:01:32]} 17. Nd4 {[%clk 0:01:37]} 1-0


[Site "https://www.chess.com"]

[Event "Titled Tuesday Blitz March 28 Early 2023"]
[White "Rozman, Levy"]
[Black "Savitha Shri B"]
[WhiteFideId "2039877"]
[BlackFideId "35061887"]
[WhiteElo "2376"]
[BlackElo "2191"]
[Result "0-1"]
[Round "09"]
[TimeControl "180+2"]
[Date "2023.03.28"]
[WhiteClock "0:00:02"]
[BlackClock "0:00:11"]

1. e4 {[%clk 0:02:59]}  c5 {[%clk 0:02:57]} 2. Nc3 {[%clk 0:02:33]}  Nc6 {[%clk 0:02:56]} 3. Bb5 {[%clk 0:02:33]}  Nd4 {[%clk 0:02:57]} 4. Nf3 {[%clk 0:02:33]}  Nxb5 {[%clk 0:02:56]} 5. Nxb5 {[%clk 0:02:33]}  a6 {[%clk 0:02:57]} 6. Nc3 {[%clk 0:02:33]}  g6 {[%clk 0:02:57]} 7. d4 {[%clk 0:02:33]}  b6 {[%clk 0:02:52]} 8. O-O {[%clk 0:02:29]}  Bg7 {[%clk 0:02:52]} 9. Be3 {[%clk 0:02:28]}  d6 {[%clk 0:02:51]} 10. h3 {[%clk 0:02:26]}  Bb7 {[%clk 0:02:52]} 11. Re1 {[%clk 0:02:25]}  Nf6 {[%clk 0:02:51]} 12. d5 {[%clk 0:02:22]}  O-O {[%clk 0:02:51]} 13. Qd2 {[%clk 0:02:20]}  Nd7 {[%clk 0:02:51]} 14. Bh6 {[%clk 0:02:20]}  b5 {[%clk 0:02:50]} 15. Qf4 {[%clk 0:02:16]}  Ne5 {[%clk 0:02:35]} 16. Nh2 {[%clk 0:02:06]}  Bc8 {[%clk 0:02:31]} 17. Rad1 {[%clk 0:01:55]}  f6 {[%clk 0:02:19]} 18. Bxg7 {[%clk 0:01:49]}  Kxg7 {[%clk 0:02:20]} 19. Qh4 {[%clk 0:01:43]}  g5 {[%clk 0:02:16]} 20. Qg3 {[%clk 0:01:42]}  Ng6 {[%clk 0:02:16]} 21. Ne2 {[%clk 0:01:37]}  a5 {[%clk 0:02:15]} 22. f4 {[%clk 0:01:35]}  h6 {[%clk 0:02:03]} 23. Nf3 {[%clk 0:01:34]}  c4 {[%clk 0:01:59]} 24. Kh2 {[%clk 0:01:31]}  Kh7 {[%clk 0:01:56]} 25. Nfd4 {[%clk 0:01:23]}  Rg8 {[%clk 0:01:32]} 26. Qf2 {[%clk 0:01:19]}  Qb6 {[%clk 0:01:30]} 27. g3 {[%clk 0:01:13]}  Bd7 {[%clk 0:01:30]} 28. Qf3 {[%clk 0:01:06]}  gxf4 {[%clk 0:01:25]} 29. gxf4 {[%clk 0:00:56]}  Rg7 {[%clk 0:01:06]} 30. Rg1 {[%clk 0:00:53]}  Rag8 {[%clk 0:01:04]} 31. Qh5 {[%clk 0:00:45]}  b4 {[%clk 0:00:59]} 32. Rg3 {[%clk 0:00:35]}  Be8 {[%clk 0:00:44]} 33. Nf5 {[%clk 0:00:29]}  Kh8 {[%clk 0:00:40]} 34. Ned4 {[%clk 0:00:21]}  Rh7 {[%clk 0:00:30]} 35. Rdg1 {[%clk 0:00:19]}  c3 {[%clk 0:00:28]} 36. b3 {[%clk 0:00:19]}  Qa6 {[%clk 0:00:27]} 37. R1g2 {[%clk 0:00:19]}  Qf1 {[%clk 0:00:18]} 38. Qf3 {[%clk 0:00:13]}  Qxf3 {[%clk 0:00:17]} 39. Nxf3 {[%clk 0:00:14]}  Bf7 {[%clk 0:00:15]} 40. N3d4 {[%clk 0:00:12]}  Nxf4 {[%clk 0:00:16]} 41. Nxe7 {[%clk 0:00:07]}  Nxg2 {[%clk 0:00:13]} 42. Nxg8 {[%clk 0:00:06]}  Bxg8 {[%clk 0:00:10]} 43. Kxg2 {[%clk 0:00:07]}  Re7 {[%clk 0:00:10]} 44. Kf3 {[%clk 0:00:05]}  Bh7 {[%clk 0:00:11]} 45. Ne6 {[%clk 0:00:03]}  f5 {[%clk 0:00:10]} 46. exf5 {[%clk 0:00:01]}  Bxf5 {[%clk 0:00:11]} 47. Nf4 {[%clk 0:00:02]}  Bxc2 {[%clk 0:00:11]} 0-1


[Site "https://www.chess.com"]

[Event "Titled Tuesday Blitz March 28 Early 2023"]
[White "Thecourseoisildur"]
[Black "Sochacki, Christophe"]
[BlackFideId "662569"]
[WhiteElo "2466"]
[BlackElo "2474"]
[Result "1-0"]
[Round "09"]
[TimeControl "180+2"]
[Date "2023.03.28"]
[WhiteClock "0:00:08"]
[BlackClock "0:00:02"]

1. e4 {[%clk 0:03:00]}  c6 {[%clk 0:02:59]} 2. d4 {[%clk 0:02:59]}  d5 {[%clk 0:03:00]} 3. e5 {[%clk 0:03:00]}  Bf5 {[%clk 0:02:59]} 4. h4 {[%clk 0:02:59]}  h5 {[%clk 0:02:58]} 5. Bd3 {[%clk 0:03:00]}  Bxd3 {[%clk 0:02:56]} 6. Qxd3 {[%clk 0:03:01]}  Qa5+ {[%clk 0:02:56]} 7. Nd2 {[%clk 0:02:56]}  e6 {[%clk 0:02:55]} 8. Ne2 {[%clk 0:02:56]}  Ne7 {[%clk 0:02:46]} 9. b4 {[%clk 0:02:54]}  Qa6 {[%clk 0:02:39]} 10. Qxa6 {[%clk 0:02:34]}  Nxa6 {[%clk 0:02:40]} 11. c3 {[%clk 0:02:33]}  Nf5 {[%clk 0:02:39]} 12. g3 {[%clk 0:02:25]}  Be7 {[%clk 0:02:39]} 13. Nf4 {[%clk 0:02:23]}  Nc7 {[%clk 0:02:38]} 14. Nb3 {[%clk 0:02:20]}  b6 {[%clk 0:02:28]} 15. a4 {[%clk 0:02:18]}  Kd7 {[%clk 0:02:22]} 16. Ba3 {[%clk 0:02:09]}  g6 {[%clk 0:02:19]} 17. Kd2 {[%clk 0:02:06]}  Rhb8 {[%clk 0:02:20]} 18. Kc2 {[%clk 0:01:58]}  Nh6 {[%clk 0:02:03]} 19. Nd3 {[%clk 0:01:56]}  Ng4 {[%clk 0:02:01]} 20. Bc1 {[%clk 0:01:47]}  Rf8 {[%clk 0:01:55]} 21. f3 {[%clk 0:01:43]}  f5 {[%clk 0:01:40]} 22. fxg4 {[%clk 0:01:42]}  fxg4 {[%clk 0:01:28]} 23. Nf4 {[%clk 0:01:36]}  Rg8 {[%clk 0:01:28]} 24. Bd2 {[%clk 0:01:37]}  Raf8 {[%clk 0:01:27]} 25. Raf1 {[%clk 0:01:35]}  Ne8 {[%clk 0:01:27]} 26. Nd3 {[%clk 0:01:19]}  Ng7 {[%clk 0:01:25]} 27. Rxf8 {[%clk 0:01:18]}  Bxf8 {[%clk 0:01:22]} 28. Bf4 {[%clk 0:01:11]}  Nf5 {[%clk 0:01:23]} 29. a5 {[%clk 0:01:07]}  Kc7 {[%clk 0:01:15]} 30. axb6+ {[%clk 0:01:05]}  axb6 {[%clk 0:01:16]} 31. Ra1 {[%clk 0:01:02]}  Kb7 {[%clk 0:01:17]} 32. Nd2 {[%clk 0:00:49]}  Bh6 {[%clk 0:01:16]} 33. Bxh6 {[%clk 0:00:46]}  Nxh6 {[%clk 0:01:17]} 34. Nf4 {[%clk 0:00:38]}  Nf5 {[%clk 0:01:17]} 35. Nf1 {[%clk 0:00:38]}  g5 {[%clk 0:01:05]} 36. hxg5 {[%clk 0:00:36]}  h4 {[%clk 0:00:58]} 37. gxh4 {[%clk 0:00:35]}  g3 {[%clk 0:00:57]} 38. Nxg3 {[%clk 0:00:25]}  Nxg3 {[%clk 0:00:56]} 39. Nxe6 {[%clk 0:00:26]}  Nh5 {[%clk 0:00:35]} 40. Rf1 {[%clk 0:00:24]}  Ka6 {[%clk 0:00:31]} 41. Rf7 {[%clk 0:00:21]}  Ng3 {[%clk 0:00:21]} 42. Nc7+ {[%clk 0:00:20]}  Kb7 {[%clk 0:00:20]} 43. Nxd5+ {[%clk 0:00:20]}  Ka6 {[%clk 0:00:21]} 44. Nc7+ {[%clk 0:00:18]}  Kb7 {[%clk 0:00:20]} 45. Ne6+ {[%clk 0:00:17]}  Ka6 {[%clk 0:00:20]} 46. Rf8 {[%clk 0:00:16]}  Rg6 {[%clk 0:00:19]} 47. Nf4 {[%clk 0:00:14]}  Rg7 {[%clk 0:00:19]} 48. e6 {[%clk 0:00:15]}  Kb5 {[%clk 0:00:18]} 49. Kb3 {[%clk 0:00:14]}  c5 {[%clk 0:00:17]} 50. bxc5 {[%clk 0:00:13]}  bxc5 {[%clk 0:00:17]} 51. c4+ {[%clk 0:00:13]}  Kc6 {[%clk 0:00:17]} 52. d5+ {[%clk 0:00:14]}  Kd6 {[%clk 0:00:17]} 53. Rd8+ {[%clk 0:00:14]}  Ke5 {[%clk 0:00:16]} 54. Nd3+ {[%clk 0:00:10]}  Kd4 {[%clk 0:00:16]} 55. d6 {[%clk 0:00:10]}  Rb7+ {[%clk 0:00:16]} 56. Kc2 {[%clk 0:00:10]}  Nf1 {[%clk 0:00:15]} 57. e7 {[%clk 0:00:08]}  Ne3+ {[%clk 0:00:15]} 58. Kc1 {[%clk 0:00:05]}  Kxd3 {[%clk 0:00:10]} 59. e8=Q {[%clk 0:00:05]}  Ra7 {[%clk 0:00:10]} 60. Qxe3+ {[%clk 0:00:04]}  Kxe3 {[%clk 0:00:10]} 61. g6 {[%clk 0:00:03]}  Kd3 {[%clk 0:00:10]} 62. d7 {[%clk 0:00:02]}  Kc3 {[%clk 0:00:10]} 63. Kd1 {[%clk 0:00:02]}  Kd3 {[%clk 0:00:09]} 64. Ke1 {[%clk 0:00:02]}  Kxc4 {[%clk 0:00:09]} 65. g7 {[%clk 0:00:02]}  Ra1+ {[%clk 0:00:08]} 66. Kf2 {[%clk 0:00:03]}  Ra2+ {[%clk 0:00:08]} 67. Kf3 {[%clk 0:00:03]}  Kc3 {[%clk 0:00:09]} 68. g8=Q {[%clk 0:00:03]}  c4 {[%clk 0:00:10]} 69. Qg7+ {[%clk 0:00:03]}  Kc2 {[%clk 0:00:09]} 70. Rc8 {[%clk 0:00:03]}  Ra3+ {[%clk 0:00:10]} 71. Kf4 {[%clk 0:00:03]}  c3 {[%clk 0:00:09]} 72. d8=Q {[%clk 0:00:03]}  Kb1 {[%clk 0:00:10]} 73. Rxc3 {[%clk 0:00:02]}  Ra4+ {[%clk 0:00:10]} 74. Kf5 {[%clk 0:00:02]}  Rb4 {[%clk 0:00:06]} 75. Rc1+ {[%clk 0:00:01]}  Kxc1 {[%clk 0:00:04]} 76. Qc3+ {[%clk 0:00:02]}  Kb1 {[%clk 0:00:04]} 77. Qxb4+ {[%clk 0:00:03]}  Kc1 {[%clk 0:00:03]} 78. Qc7+ {[%clk 0:00:03]}  Kd1 {[%clk 0:00:03]} 79. Qbd6+ {[%clk 0:00:04]}  Ke2 {[%clk 0:00:04]} 80. Qce7+ {[%clk 0:00:05]}  Kf1 {[%clk 0:00:04]} 81. Qf4+ {[%clk 0:00:06]}  Kg1 {[%clk 0:00:03]} 82. Qeg5+ {[%clk 0:00:06]}  Kh1 {[%clk 0:00:03]} 83. Qf1+ {[%clk 0:00:07]}  Kh2 {[%clk 0:00:02]} 84. Qfg2# {[%clk 0:00:08]} 1-0


[Site "https://www.chess.com"]

[Event "Titled Tuesday Blitz March 28 Early 2023"]
[White "Belozerov, Andrei"]
[Black "Maxfan2008"]
[WhiteFideId "4120213"]
[WhiteElo "2360"]
[BlackElo "2431"]
[Result "0-1"]
[Round "09"]
[TimeControl "180+2"]
[Date "2023.03.28"]
[WhiteClock "0:00:19"]
[BlackClock "0:00:58"]

1. e4 {[%clk 0:02:57]}  c5 {[%clk 0:03:00]} 2. Nf3 {[%clk 0:02:57]}  d6 {[%clk 0:03:01]} 3. Bb5+ {[%clk 0:02:57]}  Nc6 {[%clk 0:03:00]} 4. O-O {[%clk 0:02:57]}  Bd7 {[%clk 0:03:01]} 5. Re1 {[%clk 0:02:56]}  a6 {[%clk 0:03:01]} 6. Bf1 {[%clk 0:02:56]}  Nf6 {[%clk 0:03:01]} 7. c3 {[%clk 0:02:53]}  Bg4 {[%clk 0:03:02]} 8. h3 {[%clk 0:02:53]}  Bxf3 {[%clk 0:03:02]} 9. Qxf3 {[%clk 0:02:54]}  g6 {[%clk 0:03:03]} 10. d3 {[%clk 0:02:49]}  Bg7 {[%clk 0:03:03]} 11. Be3 {[%clk 0:02:49]}  O-O {[%clk 0:03:04]} 12. Nd2 {[%clk 0:02:48]}  Rb8 {[%clk 0:03:04]} 13. Qd1 {[%clk 0:02:35]}  b5 {[%clk 0:03:03]} 14. d4 {[%clk 0:02:33]}  cxd4 {[%clk 0:02:59]} 15. cxd4 {[%clk 0:02:32]}  e5 {[%clk 0:03:00]} 16. Nb3 {[%clk 0:02:05]}  Nxe4 {[%clk 0:02:41]} 17. Qc2 {[%clk 0:02:03]}  exd4 {[%clk 0:02:28]} 18. Qxc6 {[%clk 0:01:59]}  dxe3 {[%clk 0:02:28]} 19. Qxe4 {[%clk 0:01:58]}  exf2+ {[%clk 0:02:28]} 20. Kxf2 {[%clk 0:01:55]}  Bxb2 {[%clk 0:02:27]} 21. Rad1 {[%clk 0:01:52]}  Bc3 {[%clk 0:02:17]} 22. Re3 {[%clk 0:01:47]}  Qb6 {[%clk 0:02:14]} 23. Kf3 {[%clk 0:01:40]}  Be5 {[%clk 0:02:06]} 24. Red3 {[%clk 0:01:28]}  Kh8 {[%clk 0:02:01]} 25. Qd5 {[%clk 0:01:17]}  f5 {[%clk 0:01:57]} 26. Nd4 {[%clk 0:01:09]}  Rbc8 {[%clk 0:01:45]} 27. g3 {[%clk 0:01:02]}  Rc5 {[%clk 0:01:14]} 28. Qe6 {[%clk 0:01:01]}  Qb7+ {[%clk 0:01:12]} 29. Kf2 {[%clk 0:00:58]}  f4 {[%clk 0:01:10]} 30. g4 {[%clk 0:00:56]}  f3 {[%clk 0:01:06]} 31. Nxf3 {[%clk 0:00:47]}  Rc2+ {[%clk 0:01:03]} 32. Be2 {[%clk 0:00:46]}  Qe4 {[%clk 0:01:01]} 33. Re3 {[%clk 0:00:20]}  Rxf3+ {[%clk 0:00:59]} 34. Rxf3 {[%clk 0:00:19]}  Qxe2+ {[%clk 0:00:57]} 35. Kg1 {[%clk 0:00:19]}  Qg2# {[%clk 0:00:58]} 0-1


[Site "https://www.chess.com"]

[Event "Titled Tuesday Blitz March 28 Early 2023"]
[White "Gontcharov, Vladislav"]
[Black "Chan, Kim Yew"]
[WhiteFideId "4123492"]
[BlackFideId "5717981"]
[WhiteElo "2470"]
[BlackElo "2206"]
[Result "1-0"]
[Round "09"]
[TimeControl "180+2"]
[Date "2023.03.28"]
[WhiteClock "0:00:26"]
[BlackClock "0:00:02"]

1. d4 {[%clk 0:03:00]}  Nf6 {[%clk 0:02:59]} 2. c4 {[%clk 0:02:58]}  e6 {[%clk 0:02:59]} 3. Nc3 {[%clk 0:02:55]}  Bb4 {[%clk 0:02:59]} 4. e3 {[%clk 0:02:55]}  O-O {[%clk 0:02:58]} 5. Bd3 {[%clk 0:02:56]}  c5 {[%clk 0:02:57]} 6. Ne2 {[%clk 0:02:51]}  cxd4 {[%clk 0:02:56]} 7. exd4 {[%clk 0:02:51]}  d5 {[%clk 0:02:57]} 8. O-O {[%clk 0:02:43]}  dxc4 {[%clk 0:02:52]} 9. Bxc4 {[%clk 0:02:43]}  b6 {[%clk 0:02:52]} 10. Bg5 {[%clk 0:02:33]}  Bb7 {[%clk 0:02:41]} 11. Ng3 {[%clk 0:02:32]}  Be7 {[%clk 0:02:36]} 12. Bd3 {[%clk 0:02:23]}  Nc6 {[%clk 0:02:22]} 13. Be3 {[%clk 0:02:22]}  Rc8 {[%clk 0:02:14]} 14. Rc1 {[%clk 0:02:20]}  Nd5 {[%clk 0:01:31]} 15. Bb1 {[%clk 0:02:09]}  g6 {[%clk 0:01:22]} 16. Bh6 {[%clk 0:02:04]}  Re8 {[%clk 0:01:21]} 17. Nge4 {[%clk 0:02:04]}  Nxc3 {[%clk 0:01:13]} 18. bxc3 {[%clk 0:02:04]}  Na5 {[%clk 0:01:06]} 19. Re1 {[%clk 0:01:52]}  Nc4 {[%clk 0:00:53]} 20. Qe2 {[%clk 0:01:51]}  Qd5 {[%clk 0:00:46]} 21. f3 {[%clk 0:01:30]}  Nd6 {[%clk 0:00:24]} 22. Bf4 {[%clk 0:01:21]}  Nxe4 {[%clk 0:00:17]} 23. fxe4 {[%clk 0:01:19]}  Qa5 {[%clk 0:00:16]} 24. Qe3 {[%clk 0:01:13]}  Rf8 {[%clk 0:00:10]} 25. Bh6 {[%clk 0:01:10]}  Rfd8 {[%clk 0:00:10]} 26. Rf1 {[%clk 0:01:10]}  Bf8 {[%clk 0:00:08]} 27. Bg5 {[%clk 0:01:08]}  Rd7 {[%clk 0:00:07]} 28. Bf6 {[%clk 0:01:08]}  Rdc7 {[%clk 0:00:07]} 29. Rf3 {[%clk 0:01:02]}  Qa3 {[%clk 0:00:05]} 30. h4 {[%clk 0:00:54]}  h5 {[%clk 0:00:04]} 31. Be5 {[%clk 0:00:37]}  Bd6 {[%clk 0:00:04]} 32. Bxd6 {[%clk 0:00:35]}  Qxd6 {[%clk 0:00:05]} 33. Qg5 {[%clk 0:00:29]}  Qd8 {[%clk 0:00:05]} 34. Rf6 {[%clk 0:00:27]}  Kg7 {[%clk 0:00:02]} 35. Rcf1 {[%clk 0:00:26]} 1-0


[Site "https://www.chess.com"]

[Event "Titled Tuesday Blitz March 28 Early 2023"]
[White "Jumanov, Elbek"]
[Black "Zemlyanskii, Ivan"]
[WhiteFideId "14202905"]
[BlackFideId "24249971"]
[WhiteElo "2055"]
[BlackElo "2233"]
[Result "0-1"]
[Round "09"]
[TimeControl "180+2"]
[Date "2023.03.28"]
[WhiteClock "0:00:04"]
[BlackClock "0:00:19"]

1. c4 {[%clk 0:02:59]}  c6 {[%clk 0:02:56]} 2. Nf3 {[%clk 0:02:58]}  d5 {[%clk 0:02:57]} 3. d4 {[%clk 0:02:57]}  Nf6 {[%clk 0:02:57]} 4. g3 {[%clk 0:02:55]}  Bf5 {[%clk 0:02:46]} 5. Nc3 {[%clk 0:02:52]}  e6 {[%clk 0:02:43]} 6. Bg2 {[%clk 0:02:51]}  h6 {[%clk 0:02:41]} 7. O-O {[%clk 0:02:50]}  Nbd7 {[%clk 0:02:37]} 8. b3 {[%clk 0:02:50]}  Be7 {[%clk 0:02:35]} 9. Bb2 {[%clk 0:02:50]}  O-O {[%clk 0:02:32]} 10. Re1 {[%clk 0:02:50]}  a5 {[%clk 0:02:27]} 11. Nd2 {[%clk 0:02:42]}  Bh7 {[%clk 0:02:10]} 12. a3 {[%clk 0:02:35]}  Rb8 {[%clk 0:01:49]} 13. e4 {[%clk 0:02:31]}  dxe4 {[%clk 0:01:49]} 14. Ndxe4 {[%clk 0:02:31]}  b5 {[%clk 0:01:44]} 15. Qe2 {[%clk 0:02:10]}  bxc4 {[%clk 0:01:39]} 16. bxc4 {[%clk 0:02:08]}  Qc7 {[%clk 0:01:40]} 17. Rad1 {[%clk 0:02:02]}  Rfe8 {[%clk 0:01:31]} 18. Bc1 {[%clk 0:01:52]}  Rb3 {[%clk 0:01:19]} 19. c5 {[%clk 0:01:42]}  Nxe4 {[%clk 0:01:13]} 20. Nxe4 {[%clk 0:01:42]}  Nf6 {[%clk 0:01:11]} 21. Nd2 {[%clk 0:01:33]}  Rc3 {[%clk 0:00:59]} 22. Nc4 {[%clk 0:01:21]}  Rc2 {[%clk 0:00:58]} 23. Qf1 {[%clk 0:01:21]}  Nd5 {[%clk 0:00:58]} 24. Bd2 {[%clk 0:01:00]}  a4 {[%clk 0:00:51]} 25. Rc1 {[%clk 0:00:57]}  Rxc1 {[%clk 0:00:49]} 26. Rxc1 {[%clk 0:00:57]}  Qb7 {[%clk 0:00:50]} 27. Na5 {[%clk 0:00:51]}  Qa8 {[%clk 0:00:50]} 28. Qc4 {[%clk 0:00:47]}  Rb8 {[%clk 0:00:30]} 29. Qxa4 {[%clk 0:00:47]}  Bd8 {[%clk 0:00:30]} 30. Bf3 {[%clk 0:00:19]}  Bd3 {[%clk 0:00:29]} 31. Qxc6 {[%clk 0:00:11]}  Bxa5 {[%clk 0:00:26]} 32. Qxa8 {[%clk 0:00:10]}  Rxa8 {[%clk 0:00:26]} 33. Bxa5 {[%clk 0:00:07]}  Rxa5 {[%clk 0:00:27]} 34. Rd1 {[%clk 0:00:05]}  Bb5 {[%clk 0:00:24]} 35. Rb1 {[%clk 0:00:04]}  Bc6 {[%clk 0:00:20]} 36. Rb3 {[%clk 0:00:04]}  Ra4 {[%clk 0:00:19]} 0-1


[Site "https://www.chess.com"]